fUSD/lending_fUSD_20240828
["ID","MTS","AMOUNT","RATE_DAILY","PERIOD"]
[336479310,1724867440956,-2993.21720474,0.00020927,2]
[336479311,1724867440965,-150.30944536,0.00020929,2]
[336479312,1724867440975,-4370.0078649,0.00020929,2]
[336479313,1724867440986,-2652.42721813,0.0002093,2]
[336479314,1724867440995,-103006.56998051,0.0002093,15]
[336479315,1724867441005,-1296383.7220629,0.0002093,5]
[336479316,1724867441028,-3490.38491819,0.0002093,5]
[336479317,1724867441039,-1482.97325879,0.0002093,5]
[336479318,1724867441050,-253.055,0.0002093,5]
[336479329,1724867443583,-363.42500048,0.0002093,5]
[336479330,1724867443595,-1008.098861,0.0002093,5]
[336479331,1724867443606,-1396334.02735789,0.0002093,5]
[336479646,1724867446873,-5748.4558,0.0002071,2]
[336479648,1724867446882,-9777.88086538,0.0002093,5]
[336479650,1724867446894,-3274.01606386,0.0002093,5]
[336480110,1724867473093,213.818032,0.00010958,2]
[336480111,1724867473362,152.092649,0.00010958,2]
[336480112,1724867473474,213.818032,0.00010958,2]
[336480113,1724867473802,213.818032,0.00010958,2]
[336480114,1724867474134,152.092649,0.00010958,2]
[336480115,1724867474473,152.092649,0.00010958,2]
[336480116,1724867474546,213.818032,0.00010958,2]
[336480117,1724867474775,152.092649,0.00010958,2]
[336480118,1724867474870,213.818032,0.00010958,2]
[336480119,1724867476901,5940.838885,0.00010958,2]
[336480120,1724867477329,5940.838885,0.00010958,2]
[336480121,1724867477688,5940.838885,0.00010958,2]
[336480122,1724867478192,5940.838885,0.00010958,2]
[336480123,1724867478415,5940.838885,0.00010958,2]
[336480124,1724867480660,7447.760242,0.00010958,2]
[336480125,1724867480974,7447.760242,0.00010958,2]
[336480126,1724867481298,7447.760242,0.00010958,2]
[336480127,1724867481705,7447.760242,0.00010958,2]
[336480128,1724867481948,7447.760242,0.00010958,2]
[336480129,1724867485829,2214.809152,0.00010958,2]
[336480130,1724867486154,2214.809152,0.00010958,2]
[336480131,1724867486461,2214.809152,0.00010958,2]
[336480132,1724867486759,2214.809152,0.00010958,2]
[336480133,1724867487058,2214.809152,0.00010958,2]
[336480134,1724867489542,2000.0,0.00024,120]
[336480135,1724867540707,1959.24321692,0.00010897,2]
[336480136,1724867809712,165.36,0.00010959,2]
[336480137,1724868053313,1050.0,0.0001,2]
[336480138,1724868312828,273.0,0.00023551,120]
[336480139,1724868313366,150.5,0.00023551,120]
[336480140,1724868314197,150.5,0.00023541,120]
[336480141,1724868314721,150.5,0.00023531,120]
[336480142,1724868315566,150.5,0.00023551,120]
[336480143,1724868315988,150.5,0.00023541,120]
[336480144,1724868316493,168.5,0.00023531,120]
[336480154,1724868631488,-984.40976051,0.00015,2]
[336480155,1724868631506,-700.0,0.00015,2]
[336480156,1724868631518,-1731.28504997,0.00015,2]
[336480157,1724868631530,-625.93761542,0.00015,2]
[336480158,1724868631598,-329.14260328,0.00015,2]
[336480159,1724868631610,-494.33663641,0.00015,2]
[336480160,1724868631633,-628.4461735,0.00015,2]
[336480161,1724868631761,-1001.07908928,0.00015,2]
[336480183,1724868637641,-1084.36307163,0.00015,2]
[336480184,1724868637651,-300.0,0.00017259,2]
[336480185,1724868637663,-496.98,0.00017637,2]
[336480186,1724868637674,-1000.0,0.00018685,2]
[336480187,1724868637683,-420.0,0.00018846,2]
[336480188,1724868637693,-1000.0,0.00018947,2]
[336480189,1724868637703,-1000.0,0.00018947,2]
[336480190,1724868637712,-300.35,0.00019254,2]
[336480191,1724868637723,-6344.38,0.00019254,2]
[336480192,1724868637733,-2751.0,0.00019393,2]
[336480193,1724868637742,-314.91,0.00019404,2]
[336480194,1724868637752,-395.56,0.00019413,2]
[336480195,1724868637762,-250.0,0.00019417,2]
[336480196,1724868637771,-272.23,0.00019521,2]
[336480197,1724868637781,-167.0,0.00019562,2]
[336480198,1724868637790,-200.0,0.00019612,2]
[336480199,1724868637800,-4463.28878934,0.0001964,2]
[336480200,1724868637810,-1000.0,0.00019759,2]
[336480201,1724868637819,-496.98,0.000199,2]
[336480202,1724868637830,-150.0,0.0002,2]
[336480203,1724868637839,-587.0,0.00020578,2]
[336480204,1724868637849,-1983.3695,0.0002061,2]
[336480205,1724868637858,-523.8009413,0.0002061,3]
[336480206,1724868637869,-150.0,0.00020638,2]
[336480207,1724868637879,-167.0,0.00020638,2]
[336480208,1724868637888,-215.25052748,0.00020666,2]
[336480209,1724868637899,-1000.0,0.000207,2]
[336480210,1724868637909,-1000.0,0.0002071,2]
[336480211,1724868637918,-367.9814,0.0002071,2]
[336480212,1724868637928,-16521.72536198,0.0002071,2]
[336480214,1724868637941,-5397.79999995,0.0002071,2]
[336480216,1724868637953,-464.49215407,0.0002071,2]
[336480218,1724868637965,-656.70417603,0.0002071,2]
[336480221,1724868637990,-23354.9760548,0.0002071,2]
[336480226,1724868638030,-282.04696975,0.0002071,2]
[336480229,1724868638042,-566.76354058,0.0002071,2]
[336480231,1724868638053,-600.0,0.0002071,2]
[336480233,1724868638064,-713.52089121,0.0002071,2]
[336480235,1724868638079,-285.49172499,0.0002071,2]
[336480238,1724868638100,-3250.92347134,0.0002071,2]
[336480240,1724868638111,-805.98015679,0.0002071,2]
[336480242,1724868638123,-544.01346895,0.0002071,2]
[336480368,1724868639530,-2775.89751232,0.0002071,2]
[336480371,1724868639542,-2111.23078142,0.0002071,2]
[336480373,1724868639554,-356.30513582,0.0002071,2]
[336480375,1724868639564,-1566.30486418,0.0002071,2]
[336480377,1724868639578,-414.4410234,0.0002071,2]
[336480387,1724868639670,-318.67611242,0.0002071,2]
[336480389,1724868639680,-181.62888764,0.0002071,2]
[336480392,1724868639693,-1233.54541236,0.0002071,2]
[336480394,1724868639702,-652.57737593,0.0002073,2]
[336480396,1724868639712,-200.0,0.00020762,2]
[336480397,1724868639722,-500.0,0.00020763,2]
[336480399,1724868639731,-2000.0,0.00020763,2]
[336480401,1724868639740,-500.0,0.00020763,2]
[336480403,1724868639750,-500.0,0.00020763,2]
[336480405,1724868639759,-200.0,0.00020763,2]
[336480407,1724868639768,-200.0,0.00020763,2]
[336480409,1724868639777,-173.53,0.00020775,2]
[336480411,1724868639787,-217.0,0.00020801,2]
[336480413,1724868639797,-2958.1018,0.0002082,2]
[336480415,1724868639806,-693.1867,0.0002082,2]
[336480417,1724868639815,-3307.527,0.0002082,2]
[336480419,1724868639826,-2500.0,0.0002082,2]
[336480421,1724868639836,-4724.1792,0.0002082,2]
[336480423,1724868639845,-183.97398846,0.0002083,2]
[336480425,1724868639854,-836.37852325,0.0002083,2]
[336480428,1724868639866,-543.43566378,0.0002083,2]
[336480430,1724868639877,-198.84752857,0.0002083,2]
[336480432,1724868639886,-303.1336645,0.0002083,2]
[336480434,1724868639896,-300.0,0.00020859,2]
[336480436,1724868639905,-1000.0,0.00020889,2]
[336480438,1724868639914,-496.0,0.000209,3]
[336480440,1724868639923,-150.0,0.000209,2]
[336480442,1724868639932,-669.57,0.00020904,2]
[336480444,1724868639941,-112212.90328738,0.0002092,3]
[336480451,1724868640000,-2576.46747618,0.0002092,3]
[336480613,1724868642556,-1740.63,0.0002092,3]
[336480648,1724868644408,-5433.37208502,0.0002092,3]
[336480652,1724868644436,-156163.36218942,0.0002092,3]
[336480653,1724868644446,-2293.5828728,0.0002092,3]
[336480655,1724868644455,-150.83,0.0002092,2]
[336480657,1724868644465,-211.52985921,0.00020929,2]
[336480659,1724868644475,-4370.00786489,0.00020929,2]
[336480660,1724868644486,-156.10057481,0.00020929,2]
[336480662,1724868644496,-880.0,0.0002093,2]
[336480664,1724868644506,-529340.28911534,0.0002093,5]
[336480666,1724868644515,-2151.12862,0.0002093,2]
[336480668,1724868644527,-3821.83,0.0002093,2]
[336480670,1724868644536,-180.26282337,0.0002093,2]
[336480671,1724868644545,-27910.60404057,0.0002093,2]
[336480673,1724868644555,-215.74647817,0.00021,2]
[336480675,1724868644567,-310.46,0.00021,2]
[336480677,1724868644576,-1008.62,0.00021,2]
[336480679,1724868644592,-215.25052748,0.00021343,2]
[336480681,1724868644602,-1578.6617156,0.00021488,2]
[336480683,1724868644611,-1337.8,0.00021589,30]
[336480685,1724868644621,-300.35,0.00021661,2]
[336480686,1724868644631,-720.729,0.00021714,2]
[336480688,1724868644640,-167.0,0.00021715,2]
[336480690,1724868644650,-208.0,0.00021814,2]
[336480692,1724868644659,-18541.7823358,0.00021888,3]
[336480694,1724868644669,-3860.0,0.000219,30]
[336480696,1724868644678,-376.26644963,0.000219,2]
[336480698,1724868644688,-458.71657456,0.00021908,3]
[336480700,1724868644698,-6451.62,0.00021918,2]
[336480702,1724868644707,-3614.87,0.00021918,2]
[336480703,1724868644717,-150.0,0.00021918,2]
[336480705,1724868644726,-1008.62,0.00021925,2]
[336480707,1724868644736,-538.29837216,0.00022,2]
[336480709,1724868644746,-155.0,0.00022,2]
[336480711,1724868644755,-512.36131374,0.00022,2]
[336480713,1724868644766,-167.0,0.00022089,2]
[336480715,1724868644777,-1578.6617156,0.00022146,2]
[336480717,1724868644786,-496.98,0.00022164,2]
[336480718,1724868644797,-300.0,0.00022229,2]
[336480720,1724868644807,-1000.0,0.00022229,2]
[336480723,1724868644819,-173.25,0.00022243,7]
[336480724,1724868644829,-173.25,0.00022243,7]
[336480726,1724868644838,-157.41,0.00022416,2]
[336480728,1724868644848,-1000.0,0.00022466,2]
[336480730,1724868644858,-823.0,0.0002247,2]
[336480732,1724868644867,-150.0,0.00022495,2]
[336480734,1724868644877,-173.25,0.00022507,7]
[336480736,1724868644887,-173.25,0.00022507,7]
[336480738,1724868644896,-173.25,0.00022507,7]
[336480739,1724868644906,-173.25,0.00022507,7]
[336480741,1724868644915,-173.25,0.00022597,7]
[336480743,1724868644925,-173.25,0.00022597,7]
[336480745,1724868644935,-173.25,0.00022607,7]
[336480747,1724868644944,-173.25,0.00022607,7]
[336480749,1724868644954,-173.25,0.00022607,7]
[336480751,1724868644963,-173.25,0.00022607,7]
[336480753,1724868644973,-150.0,0.00022764,2]
[336480754,1724868644982,-167.0,0.00022791,2]
[336480756,1724868644992,-4247.6687985,0.00022793,3]
[336480758,1724868645005,-2841.61796075,0.00022793,3]
[336480780,1724868645217,-1000.0,0.000215,2]
[336480782,1724868645227,-1242.35735466,0.00022793,3]
[336480784,1724868645239,-1377.48320978,0.00022793,3]
[336480785,1724868645251,-566.7453937,0.00022793,3]
[336480786,1724868645278,-3408.16965506,0.00022793,3]
[336480787,1724868645289,-1345.2272652,0.00022793,3]
[336480812,1724868647948,-3512.51269815,0.00022793,3]
[336480813,1724868647959,-1578.6617156,0.00022803,2]
[336480814,1724868647968,-1008.62,0.0002285,2]
[336480815,1724868647978,-155.0,0.00023,4]
[336480816,1724868647988,-137.10558625,0.00023,10]
[336480817,1724868648149,-1473.11201998,0.00023,10]
[336480818,1724869309083,1650.0,0.00024,120]
[336480819,1724869401316,204.18,0.00010959,2]
[336480821,1724869554623,18024.01413551,0.00010399,2]
[336480822,1724869557778,3284.640274,0.00010945,2]
[336480824,1724869605127,1500.0,0.00022,60]
[336480852,1724869676692,953.51704545,0.00010899,2]
[336480853,1724869684460,2238.44612389,0.00010899,2]
[336480854,1724869701025,303.1336645,0.000109,2]
[336480855,1724869703094,179.65493734,0.000109,2]
[336480856,1724869713910,167.09217843,0.000109,2]
[336480857,1724869736746,464.31646456,0.000109,2]
[336480859,1724869814481,2705.60853164,0.000109,2]
[336480865,1724869831772,-150.81,0.0001099,2]
[336480866,1724869831782,-150.81,0.0001099,2]
[336480867,1724869831793,-150.81,0.0001099,2]
[336480868,1724869831804,-150.81,0.0001099,2]
[336480869,1724869831814,-150.81,0.0001099,2]
[336480870,1724869831824,-150.81,0.0001099,2]
[336480871,1724869831834,-4165.30657188,0.00010997,2]
[336480872,1724869831843,-300.0,0.00010998,2]
[336480873,1724869831854,-150.0,0.00010999,2]
[336480874,1724869831866,-29.83342812,0.00010999,2]
[336480875,1724869831883,-141.60373469,0.00010999,2]
[336480876,1724869831893,-188.82426531,0.00010999,2]
[336480971,1724869837819,-311.17573469,0.00010999,2]
[336480972,1724869837829,-500.0,0.00010999,2]
[336480973,1724869837839,-190.3685053,0.00010999,2]
[336480981,1724869840062,-214.53666799,0.00010999,2]
[336480983,1724869840072,-897.56979625,0.00011,2]
[336480985,1724869840083,-591.9066662,0.00011,2]
[336481013,1724869845781,-671.7,0.00011,2]
[336481015,1724869855786,1050.0,0.0001,2]
[336481016,1724869856370,303.1336645,0.000109,2]
[336481017,1724869871762,309.5443097,0.000109,2]
[336481019,1724869899561,4576.9874,0.00010897,2]
[336481020,1724869950915,1803.7390211,0.000109,2]
[336481021,1724870002800,303.1336645,0.000109,2]
[336481022,1724870005363,206.36287314,0.000109,2]
[336481023,1724870031082,685.54771821,0.000109,2]
[336481024,1724870086266,1202.49268072,0.000109,2]
[336481025,1724870138593,303.1336645,0.000109,2]
[336481026,1724870221440,801.66178716,0.000109,2]
[336481027,1724870257286,200.34942875,0.00010846,2]
[336481028,1724870267942,303.1336645,0.000109,2]
[336481029,1724870360119,534.44119144,0.000109,2]
[336481030,1724870383231,303.1336645,0.000109,2]
[336481031,1724870486851,616.99294638,0.000109,2]
[336481032,1724870495297,356.29412762,0.000109,2]
[336481033,1724870513187,219.80793522,0.000109,2]
[336481034,1724870633808,237.52941842,0.000109,2]
[336481035,1724870706979,158.46580991,0.000109,2]
[336481036,1724870771806,158.3529456,0.000109,2]
[336481042,1724870858283,203.99650371,0.000109,2]
[336481043,1724870886009,165.36,0.00010959,2]
[336481044,1724870892635,300.0,0.000103,3]
[336481045,1724870894750,600.0,0.000104,3]
[336481046,1724870896858,900.0,0.000105,3]
[336481047,1724870899030,1300.0,0.000106,3]
[336481048,1724870902016,1600.0,0.000107,3]
[336481049,1724870903240,300.0,0.000108,3]
[336481050,1724870905336,300.0,0.000109,3]
[336481051,1724870940936,555.29365167,0.000109,2]
[336481053,1724870955714,524.74,0.00010437,2]
[336481054,1724870969296,167.09217842,0.000109,2]
[336481055,1724870971988,710.39777204,0.000109,2]
[336481059,1724871032138,-500.0,0.00010973,2]
[336481060,1724871032147,-500.0,0.00010973,2]
[336481061,1724871032157,-400.0,0.00010973,2]
[336481062,1724871032168,-150.82,0.0001099,2]
[336481063,1724871032178,-150.0,0.00010999,2]
[336481064,1724871032411,-300.0,0.00010999,2]
[336481068,1724871032438,-932.58559046,0.00011,2]
[336481070,1724871032450,-970.75378337,0.00011,2]
[336481072,1724871032461,-2130.44985288,0.00011,2]
[336481074,1724871032472,-827.13712285,0.00011,2]
[336481076,1724871032484,-590.71338148,0.00011,2]
[336481078,1724871032496,-6348.69777252,0.00011,2]
[336481081,1724871032514,-1262.29595931,0.00011,2]
[336481083,1724871032530,-825.40068476,0.00011,2]
[336481085,1724871032541,-1344.78568796,0.00011,2]
[336481223,1724871038136,-500.0,0.00010973,2]
[336481224,1724871038147,-74.98736815,0.00011,2]
[336481225,1724871038161,-2538.70532351,0.00011,2]
[336481226,1724871038172,-815.0,0.00011,2]
[336481227,1724871038198,-69561.41082098,0.00011,2]
[336481228,1724871038251,-8083.76323544,0.00011,2]
[336481229,1724871038263,-13630.47362196,0.00011,2]
[336481230,1724871038279,-1279.7631426,0.00011,2]
[336481231,1724871038291,-132872.60586812,0.00011,2]
[336481232,1724871038325,-289.81396295,0.00011,2]
[336481233,1724871038336,-39019.70509522,0.00011,2]
[336481234,1724871038348,-599.2800009,0.00011,2]
[336481243,1724871040315,-343.296222,0.00010973,2]
[336481244,1724871040327,-20.19248811,0.00011,2]
[336481245,1724871040338,-517.3092,0.00011,2]
[336481246,1724871040354,-284.0,0.00011,2]
[336481247,1724871040383,-6002.69289367,0.00011,2]
[336481248,1724871040395,-2000.0,0.00011,2]
[336481249,1724871040407,-5921.71006796,0.00011,2]
[336481250,1724871040417,-888.24,0.00011,2]
[336481251,1724871040429,-1125.95213341,0.00011,2]
[336481252,1724871040441,-1064.4559759,0.00011,2]
[336481253,1724871040473,-259763.66046413,0.00011,2]
[336481254,1724871040488,-819.45729106,0.00011,2]
[336481315,1724871043067,-498.7999998,0.00011,2]
[336481317,1724871043078,-2721.87978134,0.00011,2]
[336481319,1724871043089,-4650.0,0.00011,2]
[336481320,1724871043103,-650.57180976,0.00011,2]
[336481322,1724871043125,-7344.0292179,0.00011,2]
[336481323,1724871043134,-7356.80974234,0.00011,2]
[336481324,1724871043145,-1381.28,0.00011,2]
[336481325,1724871043155,-3953.81927455,0.00011,2]
[336481337,1724871044369,-877.60613837,0.00011,2]
[336481338,1724871044381,-432595.9098662,0.00011,2]
[336481339,1724871044392,-470.21431786,0.00011,2]
[336481340,1724871044460,-31825.75774442,0.00011,2]
[336481341,1724871044471,-1448.63415379,0.00011,2]
[336481342,1724871044544,-1951.24999987,0.00011,2]
[336481343,1724871044556,-22528.8526588,0.00011,2]
[336481344,1724871044567,-5130.95572728,0.00011,2]
[336481345,1724871044590,-1656.16099867,0.00011,2]
[336481346,1724871044604,-1039.9999,0.00011,2]
[336481347,1724871044615,-711.66079676,0.00011,2]
[336481348,1724871044626,-666.41,0.00011,2]
[336481349,1724871044647,-8292.31930921,0.00011,2]
[336481350,1724871044660,-5453.45619711,0.00011,2]
[336481351,1724871044673,-1507.29,0.00011,2]
[336481352,1724871044685,-4723.141428,0.00011,2]
[336481357,1724871046028,-508.86299617,0.00011,2]
[336481358,1724871046045,-5360.8,0.00011,2]
[336481359,1724871046062,-5917.9735355,0.00011,2]
[336481360,1724871046253,-3604.75092635,0.00011,2]
[336481363,1724871046279,-30034.30232018,0.00011,2]
[336481366,1724871046298,-3888.80813399,0.00011,2]
[336481765,1724871133406,2732.16543163,0.000109,2]
[336481771,1724871268636,1821.4436211,0.000109,2]
[336481772,1724871396245,2558.58343344,0.000109,2]
[336481773,1724871412780,1214.2957474,0.000109,2]
[336481776,1724871484997,511.02,9.612e-05,2]
[336481777,1724871553974,809.53049826,0.000109,2]
[336481778,1724871689044,539.68699884,0.000109,2]
[336481779,1724871700620,157.20975065,0.00010899,2]
[336481781,1724871824861,359.79133256,0.000109,2]
[336481782,1724871850319,2302.72509006,0.000109,2]
[336481783,1724871963556,239.86088838,0.000109,2]
[336481784,1724872020407,1998.69009,0.000109,2]
[336481785,1724872020537,1998.6901,0.000109,2]
[336481786,1724872020578,1998.69009,0.0001091,2]
[336481787,1724872020617,1998.6901,0.0001092,2]
[336481799,1724872080161,485.46,9.965e-05,2]
[336481800,1724872101335,159.90725892,0.000109,2]
[336481803,1724872179629,1350.20522667,0.00010924,2]
[336481818,1724872232161,-150.0,0.00010999,2]
[336481819,1724872232171,-300.0,0.00010999,2]
[336481820,1724872232182,-500.0,0.00010999,2]
[336481821,1724872232191,-277.24900695,0.00010999,2]
[336481822,1724872232202,-500.0,0.00010999,2]
[336481823,1724872232211,-12417.18175305,0.00011,2]
[336481824,1724872232227,-15026.80446218,0.00011,2]
[336481825,1724872232248,-871.5527439,0.00011,2]
[336481826,1724872232261,-2737.33492461,0.00011,2]
[336481827,1724872232274,-1368.4452503,0.00011,2]
[336481828,1724872232286,-3300.0,0.00011,2]
[336481829,1724872232298,-3498.10131452,0.00011,2]
[336481830,1724872232322,-2425.5691086,0.00011,2]
[336481831,1724872232351,-988.81762048,0.00011,2]
[336481952,1724872238459,-1732.07685181,0.00011,2]
[336481953,1724872238471,-824.21069674,0.00011,2]
[336481954,1724872238483,-1002.01311001,0.00011,2]
[336481967,1724872240327,-188.82426531,0.00010999,2]
[336481968,1724872240337,-2665.99420869,0.00011,2]
[336481969,1724872240561,-2885638.07752221,0.00011,2]
[336481972,1724872243277,-6303.93665368,0.00011,2]
[336481973,1724872243339,-2097.17077121,0.00011,2]
[336481983,1724872246294,-1495.0215841,0.00011,2]
[336481984,1724872246306,-1910.06704844,0.00011,2]
[336481985,1724872246359,-7882.57551476,0.00011,2]
[336481989,1724872257164,568.31821764,0.000109,2]
[336481990,1724872301320,2072.45258109,0.000109,2]
[336481991,1724872347987,150.0,0.0001075,2]
[336481992,1724872348024,150.0,0.00010827,2]
[336481993,1724872348073,150.0,0.00010952,2]
[336481994,1724872348117,150.0,0.00010844,2]
[336481995,1724872348160,150.0,0.00010786,2]
[336481996,1724872360000,1500.0,0.00010864,2]
[336481997,1724872360065,1500.0,0.00010915,2]
[336481998,1724872360164,1500.0,0.00010832,2]
[336481999,1724872360194,1500.0,0.0001084,2]
[336482000,1724872360251,1500.0,0.00010932,2]
[336482001,1724872360311,1500.0,0.0001077,2]
[336482002,1724872360351,1500.0,0.00010907,2]
[336482003,1724872360385,1500.0,0.00010857,2]
[336482004,1724872360424,1500.0,0.00010812,2]
[336482005,1724872360507,1500.0,0.00010824,2]
[336482006,1724872360594,1500.0,0.00010871,2]
[336482007,1724872368402,1000.0,0.0001089,2]
[336482008,1724872379539,150.0,0.00010767,2]
[336482009,1724872379569,150.0,0.00010947,2]
[336482010,1724872379601,150.0,0.0001085,2]
[336482011,1724872379650,150.0,0.00010814,2]
[336482012,1724872379700,150.0,0.00010777,2]
[336482013,1724872379740,226.2741535,0.00010802,2]
[336482014,1724872419743,1500.0,0.00010818,2]
[336482015,1724872467458,150.0,0.00010791,2]
[336482016,1724872467488,150.0,0.00010814,2]
[336482017,1724872467524,150.0,0.00010948,2]
[336482018,1724872467567,150.0,0.00010744,2]
[336482019,1724872467674,150.0,0.0001078,2]
[336482020,1724872480094,1500.0,0.00010936,2]
[336482021,1724872480132,1500.0,0.00010787,2]
[336482022,1724872480165,1500.0,0.00010732,2]
[336482023,1724872480217,1500.0,0.00010755,2]
[336482024,1724872480285,1500.0,0.00010835,2]
[336482025,1724872480419,1500.0,0.00010951,2]
[336482026,1724872480455,241.68270508,0.00010959,2]
[336482027,1724872526914,243.9973009,0.0001093,2]
[336482028,1724872540476,651.79060203,0.0001086,2]
[336482029,1724872560475,193.97,0.00010959,2]
[336482030,1724872587261,150.0,0.00010898,2]
[336482031,1724872591216,461.18,0.00010328,2]
[336482032,1724872614416,256.8110466,0.00010836,2]
[336482033,1724872660192,1500.0,0.00010775,2]
[336482036,1724872679631,150.0,0.00010912,2]
[336482037,1724872716631,666.23003,0.0001089,2]
[336482038,1724872747783,151.01899357,0.00010756,2]
[336482039,1724872755554,1865.20732299,0.000109,2]
[336482377,1724872831931,900.0,0.000105,3]
[336482424,1724872834033,1800.0,0.000106,3]
[336482477,1724872836462,2700.0,0.000107,3]
[336482506,1724872838225,3600.0,0.000108,3]
[336482507,1724872840326,4600.0,0.000109,3]
[336482509,1724872869089,344.36309902,0.000109,2]
[336482510,1724872917700,5359.79844172,0.000109,2]
[336482511,1724873020744,1637.11956258,0.00010805,2]
[336482512,1724873039739,150.0,0.00010739,2]
[336482513,1724873054306,3573.19896114,0.000109,2]
[336482514,1724873065770,833.33333,0.0001089,2]
[336482515,1724873082140,503.47,9.54e-05,2]
[336482516,1724873129545,155.84,0.00010959,2]
[336482517,1724873134926,150.0,0.00010733,2]
[336482518,1724873153786,301.31771166,0.000109,2]
[336482522,1724873196243,2382.13264076,0.000109,2]
[336482523,1724873212934,1678.6865907,0.000109,2]
[336482524,1724873213573,1395.84262791,0.000107,15]
[336482535,1724873247515,155.0885737,0.00010818,2]
[336482538,1724873334815,1588.08842718,0.000109,2]
[336482540,1724873380943,196.56,8.655e-05,2]
[336482541,1724873414006,1055.19169,0.0001089,2]
[336482542,1724873429122,263.65299772,0.000109,2]
[336482543,1724873432344,-150.30944536,0.00010999,2]
[336482544,1724873432354,-263.38467251,0.00010999,2]
[336482549,1724873432453,-280.9793,0.00010999,2]
[336482550,1724873432651,-7147.21311408,0.00010999,2]
[336482552,1724873432660,-150.0,0.00010999,2]
[336482554,1724873432670,-24404.29107924,0.00011,2]
[336482556,1724873432681,-1323.01385731,0.00011,2]
[336482559,1724873432692,-650.14882909,0.00011,2]
[336482561,1724873432703,-572.13348406,0.00011,2]
[336482563,1724873432715,-9414.19131797,0.00011,2]
[336482668,1724873438601,-23346.9318866,0.00011,2]
[336482669,1724873438744,-2673.28413778,0.00011,2]
[336482670,1724873438756,-476.81295156,0.00011,2]
[336482671,1724873438767,-402.96160922,0.00011,2]
[336482672,1724873438779,-1836.5905978,0.00011,2]
[336482673,1724873438891,-3022.99999999,0.00011,2]
[336482674,1724873438902,-437.70943335,0.00011,2]
[336482822,1724873440615,-394.42263188,0.00011,2]
[336482824,1724873440628,-252.36,0.00011,2]
[336482827,1724873440644,-262.35902319,0.00011,2]
[336482829,1724873440668,-6185.71731656,0.00011,2]
[336482832,1724873440692,-20997.88859618,0.00011,2]
[336482835,1724873440707,-64373.03736022,0.00011,2]
[336482843,1724873440782,-1012.31351872,0.00011,2]
[336483196,1724873444547,-500.0,0.00011,2]
[336483582,1724873448508,219.61,0.0001,2]
[336484067,1724873463011,685.19969759,0.000109,2]
[336484068,1724873473223,1058.72561812,0.000109,2]
[336484069,1724873531665,595.90567673,0.00010899,2]
[336484070,1724873542440,454.65457412,0.000109,2]
[336484071,1724873548689,500.0,0.0001089,2]
[336484072,1724873549018,500.0,0.0001089,2]
[336484073,1724873549091,151.0,0.0001089,2]
[336484074,1724873549333,500.0,0.0001089,2]
[336484075,1724873549461,151.0,0.0001089,2]
[336484076,1724873549665,500.0,0.0001089,2]
[336484077,1724873550103,500.0,0.0001089,2]
[336484078,1724873550615,500.0,0.0001089,2]
[336484079,1724873550774,503.0,0.0001089,2]
[336484080,1724873603470,581.0,0.000109,5]
[336484081,1724873611864,705.81707874,0.000109,2]
[336484082,1724873622228,500.89,9.508e-05,2]
[336484096,1724873668960,1510.81793163,0.000109,2]
[336484097,1724873711877,500.0,0.000105,3]